fUSD/lending_fUSD_20250107
["ID","MTS","AMOUNT","RATE_DAILY","PERIOD"]
[347933848,1736221847229,-500.0,0.00011139,2]
[347933849,1736221847238,-500.0,0.00011139,2]
[347933850,1736221847247,-500.0,0.00011139,2]
[347933851,1736221847257,-402.86909093,0.00011139,2]
[347933852,1736221847266,-500.0,0.00011139,2]
[347933853,1736221847276,-500.0,0.00011139,2]
[347933854,1736221847285,-500.0,0.00011139,2]
[347933855,1736221847295,-500.0,0.00011139,2]
[347933856,1736221847305,-504.14129969,0.00011139,2]
[347933857,1736221847315,-504.09376291,0.00011139,2]
[347933858,1736221847324,-605.383039,0.00011139,2]
[347933859,1736221847335,-500.0,0.00011139,2]
[347933860,1736221847344,-500.0,0.00011139,2]
[347933861,1736221847354,-500.0,0.00011139,2]
[347933862,1736221847363,-500.0,0.00011139,2]
[347933863,1736221847373,-500.99393048,0.00011139,2]
[347933864,1736221847383,-500.0,0.00011139,2]
[347933865,1736221847393,-501.53874503,0.00011139,2]
[347933866,1736221847402,-501.75411214,0.00011139,2]
[347933867,1736221847411,-500.0,0.00011139,2]
[347933868,1736221847421,-500.92344308,0.00011139,2]
[347933869,1736221847431,-518.27640895,0.00011139,2]
[347933870,1736221847440,-500.37369909,0.00011139,2]
[347933871,1736221847450,-500.85073554,0.00011139,2]
[347933872,1736221847460,-500.35999952,0.00011139,2]
[347933873,1736221847470,-501.52744097,0.00011139,2]
[347933874,1736221847480,-500.0,0.00011139,2]
[347933875,1736221847490,-500.42583371,0.00011139,2]
[347933876,1736221847500,-502.08105115,0.00011139,2]
[347933877,1736221847511,-500.83529294,0.00011139,2]
[347933878,1736221847521,-500.0,0.00011139,2]
[347933879,1736221847531,-500.93456919,0.00011139,2]
[347933880,1736221847540,-501.55155383,0.00011139,2]
[347933881,1736221847550,-500.0,0.00011139,2]
[347933882,1736221847560,-501.32079126,0.00011139,2]
[347933883,1736221847569,-500.0,0.00011139,2]
[347933884,1736221847579,-502.12145796,0.00011139,2]
[347933885,1736221847588,-500.0,0.00011139,2]
[347933886,1736221847597,-500.0,0.00011139,2]
[347933887,1736221847607,-504.40797206,0.00011139,2]
[347933888,1736221847617,-500.58135176,0.00011139,2]
[347933889,1736221847627,-629.63,0.00011139,2]
[347933890,1736221847636,-500.0,0.00011139,2]
[347933891,1736221847647,-500.0,0.00011139,2]
[347933892,1736221847656,-500.0,0.00011139,2]
[347933893,1736221847666,-500.0,0.00011139,2]
[347933894,1736221847676,-500.0,0.00011139,2]
[347933895,1736221847685,-500.0,0.00011139,2]
[347933896,1736221847694,-501.30953636,0.00011139,2]
[347933897,1736221847704,-500.0,0.00011139,2]
[347933898,1736221847713,-502.67914933,0.00011139,2]
[347933899,1736221847723,-523.03,0.00011139,2]
[347933900,1736221847732,-336.59281658,0.00011139,2]
[347933901,1736221847741,-500.0,0.00011139,2]
[347933902,1736221847751,-500.98581589,0.00011139,2]
[347933903,1736221847760,-500.0,0.00011139,2]
[347933904,1736221847770,-1810.1,0.00011139,2]
[347933905,1736221847779,-500.41612135,0.00011139,2]
[347933906,1736221847789,-500.18264973,0.00011139,2]
[347933907,1736221847800,-500.34687225,0.00011139,2]
[347933908,1736221847810,-500.0,0.00011139,2]
[347933909,1736221847822,-500.0,0.00011139,2]
[347933910,1736221847832,-501.43555062,0.00011139,2]
[347933911,1736221847841,-633.08,0.00011139,2]
[347933912,1736221847851,-500.0,0.00011139,2]
[347933913,1736221847860,-501.98758469,0.00011139,2]
[347933914,1736221847873,-500.0,0.00011139,2]
[347933915,1736221847883,-500.0,0.00011139,2]
[347933916,1736221847893,-501.02461425,0.00011139,2]
[347933917,1736221847903,-501.42444676,0.00011139,2]
[347933918,1736221847913,-500.0,0.00011139,2]
[347933919,1736221847923,-514.67885891,0.00011139,2]
[347933920,1736221847933,-500.0,0.00011139,2]
[347933921,1736221847944,-500.0,0.00011139,2]
[347933922,1736221847954,-512.52,0.00011139,2]
[347933923,1736221847963,-500.90949309,0.00011139,2]
[347933924,1736221847973,-500.0,0.00011139,2]
[347933925,1736221847983,-503.29254504,0.00011139,2]
[347933926,1736221847992,-2972.42,0.00011139,2]
[347933927,1736221848002,-500.64510438,0.00011139,2]
[347933928,1736221848012,-413.09434585,0.00011139,2]
[347933929,1736221848022,-500.0,0.00011139,2]
[347933930,1736221848032,-500.0,0.00011139,2]
[347933931,1736221848042,-225.24230189,0.00011139,2]
[347933932,1736221848052,-501.54536047,0.00011139,2]
[347933933,1736221848062,-432.92158015,0.00011139,2]
[347933934,1736221848072,-500.0,0.00011139,2]
[347933935,1736221848084,-501.37428983,0.00011139,2]
[347933936,1736221848095,-500.0,0.00011139,2]
[347933937,1736221848104,-497.58246574,0.00011139,2]
[347933938,1736221848114,-500.0,0.00011139,2]
[347933939,1736221848123,-503.11052732,0.00011139,2]
[347933940,1736221848133,-500.0,0.00011139,2]
[347933941,1736221848143,-500.0,0.00011139,2]
[347933942,1736221848153,-500.0,0.00011139,2]
[347933943,1736221848162,-501.36166605,0.00011139,2]
[347933944,1736221848172,-500.0,0.00011139,2]
[347933945,1736221848182,-500.71554473,0.00011139,2]
[347933946,1736221848191,-500.0,0.00011139,2]
[347933947,1736221848201,-501.49358131,0.00011139,2]
[347933948,1736221848211,-500.0,0.00011139,2]
[347933949,1736221848221,-500.0,0.00011139,2]
[347933950,1736221848231,-500.0,0.00011139,2]
[347933951,1736221848241,-500.36698074,0.00011139,2]
[347933952,1736221848250,-502.18336884,0.00011139,2]
[347933953,1736221848260,-500.0,0.00011139,2]
[347933954,1736221848270,-411.16752235,0.00011139,2]
[347933955,1736221848280,-902.03,0.00011139,2]
[347933956,1736221848289,-500.0,0.00011139,2]
[347933957,1736221848299,-500.0,0.00011139,2]
[347933958,1736221848310,-501.35186912,0.00011139,2]
[347933959,1736221848320,-501.51354332,0.00011139,2]
[347933960,1736221848330,-507.90153847,0.00011139,2]
[347933961,1736221848340,-500.0,0.00011139,2]
[347933962,1736221848350,-501.8675699,0.00011139,2]
[347933963,1736221848359,-501.7765128,0.00011139,2]
[347933964,1736221848369,-561.4429083,0.00011139,2]
[347933965,1736221848379,-500.0,0.00011139,2]
[347933966,1736221848389,-501.44482871,0.00011139,2]
[347933967,1736221848400,-500.0,0.00011139,2]
[347933968,1736221848410,-500.0,0.00011139,2]
[347933969,1736221848421,-501.5451662,0.00011139,2]
[347933970,1736221848431,-500.0,0.00011139,2]
[347933971,1736221848440,-501.17233048,0.00011139,2]
[347933972,1736221848450,-502.93712985,0.00011139,2]
[347933973,1736221848460,-500.0,0.00011139,2]
[347933974,1736221848469,-500.3911583,0.00011139,2]
[347933975,1736221848479,-501.80622464,0.00011139,2]
[347933976,1736221848488,-500.0,0.00011139,2]
[347933977,1736221848498,-500.0,0.00011139,2]
[347933978,1736221848508,-500.92338039,0.00011139,2]
[347933979,1736221848518,-500.0,0.00011139,2]
[347933980,1736221848527,-500.41311153,0.00011139,2]
[347933981,1736221848537,-500.0,0.00011139,2]
[347933982,1736221848547,-500.0,0.00011139,2]
[347933983,1736221848557,-502.09607126,0.00011139,2]
[347933984,1736221848567,-500.0,0.00011139,2]
[347933985,1736221848576,-500.96775566,0.00011139,2]
[347933986,1736221848586,-500.0,0.00011139,2]
[347933987,1736221848595,-500.0,0.00011139,2]
[347933988,1736221848605,-500.0,0.00011139,2]
[347933989,1736221848614,-500.0,0.00011139,2]
[347933990,1736221848625,-500.0,0.00011139,2]
[347933991,1736221848635,-500.37103642,0.00011139,2]
[347933992,1736221848645,-500.0,0.00011139,2]
[347933993,1736221848655,-501.31896536,0.00011139,2]
[347933994,1736221848664,-501.48379537,0.00011139,2]
[347933995,1736221848674,-506.01254636,0.00011139,2]
[347933996,1736221848684,-500.96977546,0.00011139,2]
[347933997,1736221848693,-500.0,0.00011139,2]
[347933998,1736221848703,-502.61955391,0.00011139,2]
[347933999,1736221848713,-500.0,0.00011139,2]
[347934000,1736221848722,-507.67291452,0.00011139,2]
[347934001,1736221848732,-501.22114077,0.00011139,2]
[347934002,1736221848742,-502.05626928,0.00011139,2]
[347934003,1736221848752,-501.57187785,0.00011139,2]
[347934004,1736221848761,-504.6329795,0.00011139,2]
[347934005,1736221848771,-501.59914289,0.00011139,2]
[347934006,1736221848780,-500.0,0.00011139,2]
[347934007,1736221848791,-501.27604342,0.00011139,2]
[347934008,1736221848802,-338.61521733,0.00011139,2]
[347934009,1736221848813,-501.10730308,0.00011139,2]
[347934010,1736221848823,-500.0,0.00011139,2]
[347934011,1736221848835,-372.65829549,0.00011139,2]
[347934012,1736221848845,-500.0,0.00011139,2]
[347934013,1736221848855,-501.50474782,0.00011139,2]
[347934014,1736221848865,-212.3872616,0.00011139,2]
[347934015,1736221848877,-287.41962054,0.00011139,2]
[347934016,1736221848887,-502.9239805,0.00011139,2]
[347934017,1736221848897,-510.34547017,0.00011139,2]
[347934018,1736221848907,-500.0,0.00011139,2]
[347934019,1736221848916,-501.91057753,0.00011139,2]
[347934020,1736221848926,-500.0,0.00011139,2]
[347934021,1736221848935,-500.0,0.00011139,2]
[347934022,1736221848944,-500.0,0.00011139,2]
[347934023,1736221848954,-585.75,0.00011139,2]
[347934024,1736221848963,-613.35,0.00011139,2]
[347934025,1736221848972,-526.26418842,0.00011139,2]
[347934026,1736221848981,-717.13436016,0.00011139,2]
[347934027,1736221848991,-44226.1827249,0.0001114,2]
[347934028,1736221849000,-265.28314515,0.0001114,2]
[347934029,1736221849011,-100000.0,0.0001114,2]
[347934030,1736221849021,-1000.0,0.00011143,2]
[347934031,1736221849031,-500.0,0.00011181,2]
[347934032,1736221849041,-500.0,0.00011181,2]
[347934033,1736221849050,-353.2001569,0.00011181,2]
[347934034,1736221849060,-814.87,0.00011181,2]
[347934035,1736221849069,-500.0,0.00011181,2]
[347934036,1736221849079,-1363.4,0.00011181,2]
[347934037,1736221849089,-951.5,0.00011181,2]
[347934038,1736221849099,-500.0,0.00011181,2]
[347934039,1736221849110,-264.0,0.00011181,2]
[347934040,1736221849119,-16969.2874346,0.00011182,2]
[347934041,1736221849129,-5468.7289598,0.00011182,2]
[347934042,1736221849138,-3000.0,0.00011183,2]
[347934043,1736221849149,-1711.65656139,0.00011183,2]
[347934044,1736221849159,-29244.96665214,0.00011183,2]
[347934045,1736221849169,-14387.56901228,0.00011183,2]
[347934046,1736221849179,-80643.30525958,0.00011184,2]
[347934047,1736221849189,-37790.8356943,0.00011184,2]
[347934048,1736221849210,-418.03571484,0.00011184,2]
[347934049,1736221849222,-30579.78,0.00011184,2]
[347934050,1736221849234,-1192.20706,0.00011184,2]
[347934051,1736221849246,-1845.66805756,0.00011184,2]
[347934052,1736221849258,-1212.61671148,0.00011184,2]
[347934053,1736221849287,-1273.949995,0.00011184,2]
[347934054,1736221849299,-365.7149734,0.00011184,2]
[347934055,1736221849311,-991.61344025,0.00011184,2]
[347934056,1736221849324,-1104.77514956,0.00011184,2]
[347934057,1736221849482,-500.0,0.00011139,2]
[347934058,1736221849492,-3868.10846319,0.00011184,2]
[347934059,1736221849502,-3147.42119173,0.00011185,2]
[347934060,1736221849511,-528.13376711,0.00011185,2]
[347934061,1736221849521,-3147.42119173,0.00011185,2]
[347934062,1736221849531,-200.0,0.00011186,2]
[347934063,1736221849540,-200.0,0.00011187,2]
[347934064,1736221849550,-528.13376711,0.00011187,2]
[347934065,1736221849560,-244.59177768,0.00011187,2]
[347934066,1736221849569,-200.0,0.00011188,2]
[347934067,1736221849579,-200.0,0.00011188,2]
[347934068,1736221849589,-6308.80385762,0.00011188,2]
[347934069,1736221849598,-1294.57330303,0.00011188,2]
[347934070,1736221849611,-501.771067,0.00011188,2]
[347934071,1736221849622,-407.82269628,0.00011188,2]
[347934072,1736221849648,-311.89060004,0.00011188,2]
[347934073,1736221849660,-26728.90898579,0.00011188,2]
[347934074,1736221849670,-302.06133362,0.00011189,2]
[347934075,1736221849679,-244.59177768,0.00011189,2]
[347934076,1736221849689,-50105.82806621,0.00011189,2]
[347934077,1736221849698,-447.02543991,0.00011189,2]
[347934078,1736221849707,-204.0,0.0001119,2]
[347934079,1736221849718,-644.68587731,0.0001119,2]
[347934080,1736221849727,-447.02543991,0.0001119,2]
[347934081,1736221849737,-8231.82880836,0.0001119,2]
[347934082,1736221849746,-200.0,0.00011191,2]
[347934083,1736221849755,-80643.30525958,0.00011191,2]
[347934084,1736221849765,-9845.05007272,0.00011192,2]
[347934085,1736221849776,-200.0,0.00011192,2]
[347934086,1736221849787,-8231.82880836,0.00011192,2]
[347934087,1736221849796,-302.06133362,0.00011192,2]
[347934088,1736221849806,-29244.96665214,0.00011192,2]
[347934089,1736221849817,-14387.56901228,0.00011193,2]
[347934090,1736221849826,-6308.80385762,0.00011193,2]
[347934091,1736221849836,-14387.56901228,0.00011194,2]
[347934092,1736221849845,-80643.30525958,0.00011194,2]
[347934093,1736221849855,-477.13138911,0.00011194,2]
[347934094,1736221849864,-302.06133362,0.00011195,2]
[347934095,1736221849877,-14122.56258508,0.00011197,2]
[347934096,1736221849887,-17602.37587315,0.00011198,2]
[347934097,1736221849899,-1076.24944658,0.00011198,2]
[347934098,1736221849912,-267.96133177,0.00011198,2]
[347934099,1736221849924,-10298.38000064,0.00011198,2]
[347934100,1736221849933,-477.13138911,0.00011198,2]
[347934101,1736221849944,-14387.56901228,0.00011198,2]
[347934102,1736221849954,-3147.42119173,0.00011198,2]
[347934103,1736221849964,-6308.80385762,0.00011198,2]
[347934104,1736221849974,-200.0,0.00011198,2]
[347934105,1736221849983,-14122.56258508,0.00011199,2]
[347934106,1736221849993,-302.06133362,0.00011199,2]
[347934107,1736221850003,-9912.84462992,0.00011199,2]
[347934108,1736221850015,-2243.19703088,0.00011199,2]
[347934109,1736221850038,-37949.78640541,0.00011199,2]
[347934110,1736221850048,-528.13376711,0.000112,2]
[347934111,1736221850058,-200.0,0.000112,2]
[347934112,1736221850067,-2561.7001,0.000112,2]
[347934113,1736221850077,-4213.4352,0.000112,2]
[347934114,1736221850086,-1619.7517,0.000112,2]
[347934115,1736221850095,-3000.0,0.000112,4]
[347934116,1736221850105,-500.0,0.00011231,2]
[347934117,1736221850115,-535.36174188,0.00011233,2]
[347934118,1736221850124,-659.11,0.00011233,2]
[347934119,1736221850134,-500.0,0.00011233,2]
[347934120,1736221850144,-368.56,0.00011233,2]
[347934121,1736221850154,-500.0,0.00011233,2]
[347934122,1736221850288,-645.74,0.00011233,2]
[347934123,1736221850326,-500.0,0.00011233,2]
[347934124,1736221850336,-500.0,0.00011233,2]
[347934125,1736221850346,-201.89,0.00011233,2]
[347934126,1736221850356,-666.4,0.00011233,2]
[347934127,1736221850366,-227.18,0.00011233,2]
[347934128,1736221850376,-500.0,0.00011233,2]
[347934129,1736221850386,-152.92260958,0.00011233,2]
[347934130,1736221850396,-1031.7,0.00011234,2]
[347934131,1736221850406,-500.0,0.00011234,2]
[347934132,1736221850415,-637.06,0.00011234,2]
[347934133,1736221850425,-500.0,0.00011234,2]
[347934134,1736221850435,-500.0,0.00011234,2]
[347934135,1736221850444,-500.0,0.00011234,2]
[347934136,1736221850454,-210.23,0.00011234,2]
[347934137,1736221850463,-1263.06,0.00011234,2]
[347934138,1736221850473,-500.0,0.00011235,2]
[347934139,1736221850483,-857.84,0.00011235,2]
[347934140,1736221850493,-301.5,0.00011235,2]
[347934141,1736221850503,-521.21443586,0.00011235,2]
[347934142,1736221850516,-79.77556414,0.00011235,2]
[347934143,1736221850525,-255.56946354,0.00011235,2]
[347934169,1736223031874,-635.16,8.219e-05,2]
[347934170,1736223031884,-1436.29,8.219e-05,2]
[347934171,1736223031895,-205.0,9.81e-05,2]
[347934172,1736223031904,-275.87,9.96e-05,2]
[347934173,1736223031912,-212.63,9.982e-05,2]
[347934174,1736223031920,-157.553052,9.999e-05,2]
[347934175,1736223031928,-205.0,0.0001001,2]
[347934176,1736223031938,-1000.0,0.00010036,2]
[347934177,1736223031947,-164.48,0.00010137,2]
[347934178,1736223031956,-527.27,0.00010137,2]
[347934179,1736223031968,-205.0,0.0001021,2]
[347934180,1736223031978,-107.07960798,0.00010229,2]
[347934181,1736223031995,-210.93139202,0.00010229,2]
[347934182,1736223032005,-307.273,0.00010229,2]
[347934183,1736223032014,-2200.051,0.00010229,2]
[347934184,1736223032023,-2075.44460798,0.00010229,2]
[347934185,1736223032051,-291.4110805,0.00010229,2]
[347934186,1736223032062,-1527.14431152,0.00010229,2]
[347934187,1736223032072,-150.0,0.00010229,2]
[347934188,1736223032081,-250.0,0.00010253,2]
[347934189,1736223032091,-205.0,0.0001041,2]
[347934190,1736223032100,-1436.29,0.00010476,2]
[347934191,1736223032109,-714.28,0.000105,2]
[347934192,1736223032118,-205.0,0.0001061,2]
[347934193,1736223032128,-579.475,0.0001067,2]
[347934194,1736223032137,-152.0,0.0001069,3]
[347934195,1736223032146,-150.0,0.00010751,2]
[347934196,1736223032155,-150.0,0.00010751,2]
[347934197,1736223032164,-150.00000001,0.00010751,2]
[347934198,1736223032173,-153.72785076,0.00010751,2]
[347934199,1736223032183,-205.0,0.0001081,2]
[347934200,1736223032192,-365.0,0.000109,2]
[347934201,1736223032201,-1000.0,0.000109,2]
[347934202,1736223032210,-230.0,0.000109,2]
[347934203,1736223032219,-152.92260958,0.000109,2]
[347934204,1736223032228,-152.0,0.00010914,4]
[347934205,1736223032238,-400.0,0.00010986,2]
[347934206,1736223032247,-16205.3591891,0.00011,2]
[347934207,1736223032264,-610.56000007,0.00011,2]
[347934208,1736223032275,-1162.63548311,0.00011,2]
[347934209,1736223032287,-3887.86064491,0.00011,2]
[347934210,1736223032298,-3799.37093081,0.00011,2]
[347934211,1736223032314,-7699.24218009,0.00011,2]
[347934212,1736223032337,-16634.97157191,0.00011,2]
[347934213,1736223032347,-179.0481899,0.0001101,2]
[347934214,1736223032357,-205.0,0.0001101,2]
[347934216,1736223032366,-152.92260958,0.00011043,2]
[347934218,1736223032375,-500.0,0.00011119,2]
[347934220,1736223032385,-200.0,0.00011119,2]
[347934222,1736223032394,-152.43,0.00011137,2]
[347934224,1736223032402,-706.012,0.00011137,2]
[347934226,1736223032412,-500.0,0.00011137,2]
[347934227,1736223032421,-500.0,0.00011137,2]
[347934229,1736223032431,-500.0,0.00011137,2]
[347934231,1736223032441,-500.52208222,0.00011137,2]
[347934232,1736223032450,-505.26,0.00011137,2]
[347934233,1736223032459,-314.68876562,0.00011137,2]
[347934234,1736223032468,-621.11307273,0.00011137,2]
[347934236,1736223032477,-500.0,0.00011137,2]
[347934238,1736223032486,-500.0,0.00011137,2]
[347934239,1736223032496,-582.18,0.00011137,2]
[347934240,1736223032505,-500.0,0.00011137,2]
[347934241,1736223032514,-500.0,0.00011137,2]
[347934242,1736223032524,-500.0,0.00011137,2]
[347934243,1736223032533,-500.0,0.00011137,2]
[347934244,1736223032543,-224.27577042,0.00011137,2]
[347934245,1736223032552,-500.0,0.00011137,2]
[347934246,1736223032561,-500.0,0.00011137,2]
[347934247,1736223032571,-500.0,0.00011137,2]
[347934248,1736223032581,-500.0,0.00011137,2]
[347934249,1736223032590,-500.0,0.00011137,2]
[347934250,1736223032599,-569.08056936,0.00011137,2]
[347934251,1736223032609,-610.87,0.00011137,2]
[347934252,1736223032618,-500.0,0.00011137,2]
[347934253,1736223032627,-376.45495344,0.00011137,2]
[347934254,1736223032636,-500.0,0.00011137,2]
[347934255,1736223032646,-500.0,0.00011137,2]
[347934256,1736223032655,-500.0,0.00011137,2]
[347934257,1736223032666,-500.0,0.00011137,2]
[347934258,1736223032675,-365.80999798,0.00011137,2]
[347934259,1736223032685,-500.0,0.00011137,2]
[347934260,1736223032694,-500.0,0.00011137,2]
[347934261,1736223032703,-500.0,0.00011137,2]
[347934262,1736223032713,-500.0,0.00011137,2]
[347934263,1736223032722,-205.67408064,0.00011137,2]
[347934264,1736223032732,-604.35579682,0.00011137,2]
[347934265,1736223032742,-160.53444744,0.00011137,2]
[347934266,1736223032751,-500.0,0.00011137,2]
[347934267,1736223032760,-424.50098031,0.00011137,2]
[347934268,1736223032770,-500.0,0.00011137,2]
[347934269,1736223032779,-500.0,0.00011137,2]
[347934270,1736223032788,-500.0,0.00011137,2]
[347934271,1736223032798,-500.0,0.00011137,2]
[347934272,1736223032807,-166.0,0.00011138,2]
[347934273,1736223032817,-175.99,0.00011138,2]
[347934274,1736223032827,-500.70847329,0.00011138,2]
[347934275,1736223032836,-502.2907924,0.00011138,2]
[347934276,1736223032846,-509.06195362,0.00011138,2]
[347934277,1736223032856,-500.0,0.00011138,2]
[347934278,1736223032865,-500.0,0.00011138,2]
[347934279,1736223032874,-504.62744722,0.00011138,2]
[347934280,1736223032886,-501.57109633,0.00011138,2]
[347934281,1736223032896,-500.0,0.00011138,2]
[347934282,1736223032906,-500.0,0.00011138,2]
[347934283,1736223032915,-500.0,0.00011138,2]
[347934284,1736223032925,-500.0,0.00011138,2]
[347934285,1736223032935,-502.45914802,0.00011138,2]
[347934286,1736223032944,-500.0,0.00011138,2]
[347934287,1736223032955,-500.0,0.00011138,2]
[347934288,1736223032965,-500.0,0.00011138,2]
[347934289,1736223032975,-500.0,0.00011138,2]
[347934290,1736223032984,-500.0,0.00011138,2]
[347934291,1736223032994,-500.0,0.00011138,2]
[347934292,1736223033003,-633.60718522,0.00011138,2]
[347934293,1736223033012,-500.0,0.00011138,2]
[347934294,1736223033022,-500.0,0.00011138,2]
[347934295,1736223033032,-500.0,0.00011138,2]
[347934296,1736223033041,-500.0,0.00011138,2]
[347934297,1736223033051,-500.0,0.00011138,2]
[347934298,1736223033061,-500.0,0.00011138,2]
[347934299,1736223033071,-500.0,0.00011138,2]
[347934300,1736223033080,-500.0,0.00011138,2]
[347934301,1736223033090,-500.0,0.00011138,2]
[347934302,1736223033101,-500.0,0.00011138,2]
[347934303,1736223033113,-500.0,0.00011138,2]
[347934304,1736223033123,-505.11134391,0.00011138,2]
[347934305,1736223033133,-500.0,0.00011138,2]
[347934306,1736223033143,-500.0,0.00011138,2]
[347934307,1736223033154,-500.0,0.00011138,2]
[347934308,1736223033164,-500.0,0.00011138,2]
[347934309,1736223033174,-500.0,0.00011138,2]
[347934310,1736223033184,-588.01751269,0.00011138,2]
[347934311,1736223033194,-500.0,0.00011138,2]
[347934312,1736223033204,-500.0,0.00011138,2]
[347934313,1736223033213,-500.0,0.00011138,2]
[347934314,1736223033223,-503.2643337,0.00011138,2]
[347934315,1736223033233,-501.64239618,0.00011138,2]
[347934316,1736223033243,-500.0,0.00011138,2]
[347934317,1736223033253,-581.69,0.00011138,2]
[347934318,1736223033262,-500.0,0.00011138,2]
[347934319,1736223033272,-500.0,0.00011138,2]
[347934320,1736223033281,-500.22799183,0.00011138,2]
[347934321,1736223033291,-500.0,0.00011138,2]
[347934322,1736223033300,-503.76422523,0.00011138,2]
[347934323,1736223033309,-500.0,0.00011138,2]
[347934324,1736223033320,-500.58686996,0.00011138,2]
[347934325,1736223033330,-500.0,0.00011138,2]
[347934326,1736223033340,-317.75700499,0.00011138,2]
[347934327,1736223033349,-500.0,0.00011138,2]
[347934328,1736223033360,-500.0,0.00011138,2]
[347934329,1736223033369,-500.52696169,0.00011138,2]
[347934330,1736223033379,-500.0,0.00011138,2]
[347934331,1736223033388,-204.76847216,0.00011138,2]
[347934332,1736223033398,-501.23288283,0.00011138,2]
[347934333,1736223033409,-500.0,0.00011138,2]
[347934334,1736223033419,-530.05240583,0.00011138,2]
[347934335,1736223033428,-500.0,0.00011138,2]
[347934336,1736223033438,-500.87621653,0.00011138,2]
[347934337,1736223033447,-500.4884512,0.00011138,2]
[347934338,1736223033456,-500.65725682,0.00011138,2]
[347934339,1736223033466,-500.26668158,0.00011138,2]
[347934340,1736223033475,-500.73840217,0.00011138,2]
[347934341,1736223033484,-501.74826303,0.00011138,2]
[347934342,1736223033494,-500.0,0.00011138,2]
[347934343,1736223033503,-1535.69,0.00011138,2]
[347934344,1736223033513,-500.2300727,0.00011138,2]
[347934345,1736223033522,-500.0,0.00011138,2]
[347934346,1736223033532,-1422.44,0.00011138,2]
[347934347,1736223033542,-500.0,0.00011138,2]
[347934348,1736223033551,-500.0,0.00011138,2]
[347934349,1736223033561,-583.98,0.00011138,2]
[347934350,1736223033570,-500.0,0.00011138,2]
[347934351,1736223033580,-152.0,0.00011139,5]
[347934352,1736223033815,-1505.69,0.00011139,2]
[347934353,1736223033826,-150.81,0.00011139,2]
[347934354,1736223033836,-500.0,0.00011139,2]
[347934355,1736223033846,-500.0,0.00011139,2]
[347934356,1736223033858,-500.0,0.00011139,2]
[347934357,1736223033868,-500.0,0.00011139,2]
[347934358,1736223033879,-786.35,0.00011139,2]
[347934359,1736223033893,-500.0,0.00011181,2]
[347934360,1736223033903,-152.92260958,0.00011186,2]
[347934361,1736223033913,-1098.35,0.000112,2]
[347934362,1736223033924,-1606.7176,0.000112,2]
[347934363,1736223033935,-694.8759,0.000112,2]
[347934364,1736223033944,-205.0,0.0001121,2]
[347934365,1736223033954,-212.63,0.00011229,2]
[347934366,1736223033966,-3880.9746518,0.00011232,2]
[347934367,1736223033976,-3000.0,0.00011235,2]
[347934368,1736223033986,-12013.5028284,0.0001125,2]
[347934369,1736223033995,-429.79058488,0.0001125,2]
[347934370,1736223034005,-500.0,0.00011258,2]
[347934371,1736223034014,-500.0,0.00011258,2]
[347934372,1736223034024,-500.0,0.00011258,2]
[347934373,1736223034033,-500.0,0.00011258,2]
[347934374,1736223034043,-500.0,0.00011258,2]
[347934375,1736223034054,-500.0,0.00011258,2]
[347934376,1736223034063,-500.0,0.00011258,2]
[347934377,1736223034072,-500.0,0.00011258,2]
[347934378,1736223034082,-164.75629214,0.00011258,2]
[347934379,1736223034091,-500.0,0.00011258,2]
[347934380,1736223034101,-500.0,0.00011258,2]
[347934381,1736223034111,-500.0,0.00011258,2]
[347934382,1736223034122,-1886.31,0.00011258,2]